fUST/lending_fUST_20240904
["ID","MTS","AMOUNT","RATE_DAILY","PERIOD"]
[337156856,1725456780992,-749.45,0.00032328,2]
[337156857,1725456781003,-500.0,0.00032328,2]
[337156858,1725456781013,-397.76160539,0.00032328,2]
[337156859,1725456781022,-590.0,0.00032328,2]
[337156860,1725456781032,-500.0,0.00032328,2]
[337156861,1725456781041,-331.13035869,0.00032328,2]
[337156862,1725456781051,-510.61,0.00032328,2]
[337156863,1725456781060,-500.0,0.00032328,2]
[337156864,1725456781070,-500.0,0.00032328,2]
[337156865,1725456781080,-887.25,0.00032328,2]
[337156866,1725456781091,-500.0,0.00032328,2]
[337156867,1725456781100,-758.9,0.00032328,2]
[337156868,1725456781110,-500.0,0.00032328,2]
[337156869,1725456781120,-500.0,0.00032328,2]
[337156870,1725456781129,-500.0,0.00032328,2]
[337156871,1725456781139,-500.0,0.00032328,2]
[337156872,1725456781148,-500.0,0.00032328,2]
[337156873,1725456781158,-945.1,0.00032328,2]
[337156874,1725456781168,-582.56,0.00032328,2]
[337156875,1725456781177,-1029.49,0.00032328,2]
[337156876,1725456781186,-770.95,0.00032328,2]
[337156877,1725456781196,-566.62,0.00032328,2]
[337156878,1725456781205,-657.65,0.00032328,2]
[337156879,1725456781215,-500.0,0.00032328,2]
[337156880,1725456781225,-263.61,0.00032328,2]
[337156881,1725456781235,-863.47,0.00032328,2]
[337156882,1725456781244,-614.65,0.00032328,2]
[337156883,1725456781254,-500.0,0.00032328,2]
[337156884,1725456781264,-648.68,0.00032328,2]
[337156885,1725456781274,-500.0,0.00032328,2]
[337156886,1725456781283,-500.0,0.00032328,2]
[337156887,1725456781293,-701.69,0.00032328,2]
[337156888,1725456781302,-500.0,0.00032328,2]
[337156889,1725456781312,-578.02,0.00032328,2]
[337156890,1725456781322,-666.45,0.00032328,2]
[337156891,1725456781331,-500.0,0.00032328,2]
[337156892,1725456781340,-674.09,0.00032328,2]
[337156893,1725456781350,-623.51,0.00032328,2]
[337156894,1725456781360,-574.79,0.00032328,2]
[337156895,1725456781369,-604.6,0.00032328,2]
[337156896,1725456781379,-566.62,0.00032328,2]
[337156897,1725456781388,-500.0,0.00032328,2]
[337156898,1725456781398,-847.93,0.00032328,2]
[337156899,1725456781408,-870.2,0.00032328,2]
[337156900,1725456781418,-500.0,0.00032328,2]
[337156901,1725456781427,-1991.87,0.00032328,2]
[337156902,1725456781437,-500.0,0.00032328,2]
[337156903,1725456781446,-899.14,0.00032328,2]
[337156904,1725456781456,-613.99,0.00032328,2]
[337156905,1725456781466,-762.62,0.00032328,2]
[337156906,1725456781476,-500.0,0.00032328,2]
[337156907,1725456781486,-732.83,0.00032328,2]
[337156908,1725456781497,-2003.71,0.00032328,2]
[337156909,1725456781508,-1205.94,0.00032328,2]
[337156910,1725456781518,-526.12,0.00032328,2]
[337156911,1725456781528,-500.0,0.00032328,2]
[337156912,1725456781538,-500.0,0.00032328,2]
[337156913,1725456781547,-912.72,0.00032328,2]
[337156914,1725456781557,-500.0,0.00032328,2]
[337156915,1725456781567,-954.3,0.00032328,2]
[337156916,1725456781577,-1417.83,0.00032328,2]
[337156917,1725456781586,-1493.78,0.00032328,2]
[337156918,1725456781595,-591.49,0.00032328,2]
[337156919,1725456781605,-711.92,0.00032328,2]
[337156920,1725456781614,-1275.87,0.00032328,2]
[337156921,1725456781624,-2668.56,0.00032328,2]
[337156922,1725456781637,-1035.91,0.00032328,2]
[337156923,1725456781646,-1248.71,0.00032328,2]
[337156924,1725456781655,-967.05,0.00032328,2]
[337156925,1725456781666,-2693.21,0.00032328,2]
[337156926,1725456781675,-1338.09,0.00032328,2]
[337156927,1725456781684,-1107.58,0.00032328,2]
[337156928,1725456781693,-4246.41,0.00032328,2]
[337156929,1725456781703,-1107.23,0.00032328,2]
[337156930,1725456781714,-1365.5,0.00032328,2]
[337156931,1725456781723,-1532.75,0.00032328,2]
[337156932,1725456781733,-1527.6,0.00032328,2]
[337156933,1725456781742,-1066.88,0.00032328,2]
[337156934,1725456781754,-1660.38,0.00032328,2]
[337156935,1725456781763,-754.88,0.00032328,2]
[337156936,1725456781772,-1670.02,0.00032328,2]
[337156937,1725456781782,-770.2,0.00032328,2]
[337156938,1725456781791,-1102.43,0.00032328,2]
[337156939,1725456781801,-1127.67,0.00032328,2]
[337156940,1725456781810,-1244.81,0.00032328,2]
[337156941,1725456781820,-1739.84,0.00032328,2]
[337156942,1725456781829,-500.0,0.00032328,2]
[337156943,1725456781839,-1099.51,0.00032328,2]
[337156944,1725456781849,-1841.76,0.00032328,2]
[337156945,1725456781859,-1011.14,0.00032328,2]
[337156946,1725456781879,-1093.15,0.00032328,2]
[337156947,1725456781889,-1756.8,0.00032328,2]
[337156948,1725456781899,-1799.48,0.00032328,2]
[337156949,1725456781908,-734.49,0.00032328,2]
[337156950,1725456781917,-1200.0,0.00032355,7]
[337156951,1725456781927,-1417.96,0.000324,7]
[337156952,1725456781937,-160.0,0.00032407,5]
[337156953,1725456781946,-1800.0,0.00032429,7]
[337156954,1725456781955,-3000.0,0.00032588,5]
[337156955,1725456781965,-749.82,0.00032592,2]
[337156956,1725456781974,-308.0,0.00032592,2]
[337156957,1725456781983,-500.0,0.00032592,2]
[337156958,1725456781993,-6849.4161113,0.00032592,2]
[337156959,1725456782008,-500.0,0.00032602,2]
[337156960,1725456782017,-500.0,0.00032602,2]
[337156961,1725456782027,-1302.87,0.00032602,2]
[337156962,1725456782037,-1156.02,0.00032602,2]
[337156963,1725456782046,-760.8,0.00032602,2]
[337156964,1725456782055,-2082.53,0.00032602,2]
[337156965,1725456782066,-10473.4,0.00032602,2]
[337156966,1725456782075,-885.72,0.00032602,2]
[337156967,1725456782085,-871.3,0.00032602,2]
[337156968,1725456782094,-2887.27,0.00032602,2]
[337156969,1725456782104,-1285.92,0.00032602,2]
[337156970,1725456782114,-985.59,0.00032602,2]
[337156971,1725456782123,-4135.59,0.00032602,2]
[337156972,1725456782134,-572.05758296,0.00032602,2]
[337156973,1725456782144,-331.211677,0.00032602,2]
[337156974,1725456782154,-543.17,0.00032602,2]
[337156975,1725456782164,-6518.68,0.00032602,2]
[337156976,1725456782174,-1587.43,0.00032602,2]
[337156977,1725456782184,-881.43,0.00032602,2]
[337156978,1725456782193,-5985.78,0.00032602,2]
[337156979,1725456782203,-506.34,0.00032602,2]
[337156980,1725456782213,-1326.71,0.00032602,2]
[337156981,1725456782224,-760.48,0.00032602,2]
[337156982,1725456782234,-500.0,0.00032602,2]
[337156983,1725456782244,-1143.83,0.00032602,2]
[337156984,1725456782258,-2460.73,0.00032602,2]
[337156985,1725456782268,-584.31,0.00032602,2]
[337156986,1725456782277,-807.59,0.00032602,2]
[337156987,1725456782287,-1986.82,0.00032602,2]
[337156988,1725456782296,-1131.76,0.00032602,2]
[337156989,1725456782306,-500.0,0.00032602,2]
[337156990,1725456782316,-919.57,0.00032602,2]
[337156991,1725456782326,-485.78,0.00032602,2]
[337156992,1725456782335,-500.0,0.00032602,2]
[337156993,1725456782345,-519.17,0.00032602,2]
[337156994,1725456782354,-1474.74,0.00032602,2]
[337156995,1725456782364,-617.89,0.00032602,2]
[337156996,1725456782374,-540.48,0.00032602,2]
[337156997,1725456782384,-538.02,0.00032602,2]
[337156998,1725456782394,-1937.6,0.00032602,2]
[337156999,1725456782403,-588.58,0.00032602,2]
[337157000,1725456782413,-854.16,0.00032602,2]
[337157001,1725456782423,-500.0,0.00032602,2]
[337157002,1725456782432,-912.4,0.00032602,2]
[337157003,1725456782442,-500.0,0.00032602,2]
[337157004,1725456782452,-500.0,0.00032602,2]
[337157005,1725456782462,-514.35,0.00032602,2]
[337157006,1725456782472,-529.57,0.00032602,2]
[337157007,1725456782482,-2076.7,0.00032602,2]
[337157008,1725456782502,-521.85,0.00032602,2]
[337157009,1725456782512,-1309.04,0.00032602,2]
[337157010,1725456782523,-1026.02,0.00032602,2]
[337157011,1725456782532,-1208.37,0.00032602,2]
[337157012,1725456782542,-1338.25,0.00032602,2]
[337157013,1725456782552,-500.0,0.00032602,2]
[337157014,1725456782561,-1167.36,0.00032602,2]
[337157015,1725456782571,-1426.7,0.00032602,2]
[337157016,1725456782581,-1038.97,0.00032602,2]
[337157017,1725456782591,-2750.23,0.00032602,2]
[337157018,1725456782600,-2710.57,0.00032602,2]
[337157019,1725456782610,-1541.42,0.00032602,2]
[337157020,1725456782620,-3258.81,0.00032602,2]
[337157021,1725456782632,-1264.51,0.00032602,2]
[337157022,1725456782643,-9158.35,0.00032602,2]
[337157023,1725456782653,-584.36,0.00032602,2]
[337157024,1725456782662,-542.73,0.00032602,2]
[337157025,1725456782673,-500.0,0.00032602,2]
[337157026,1725456782683,-1675.33,0.00032602,2]
[337157027,1725456782693,-1458.75,0.00032602,2]
[337157028,1725456782704,-552.11,0.00032602,2]
[337157029,1725456782713,-500.0,0.00032602,2]
[337157030,1725456782723,-500.0,0.00032602,2]
[337157031,1725456782733,-500.0,0.00032602,2]
[337157032,1725456782743,-525.77,0.00032602,2]
[337157033,1725456782756,-676.43,0.00032602,2]
[337157034,1725456782766,-632.09,0.00032602,2]
[337157035,1725456782776,-500.0,0.00032602,2]
[337157036,1725456782786,-500.0,0.00032602,2]
[337157037,1725456782797,-616.0,0.00032602,2]
[337157038,1725456782806,-504.86,0.00032602,2]
[337157039,1725456782816,-604.04,0.00032602,2]
[337157040,1725456782826,-213.84,0.00032602,2]
[337157041,1725456782836,-697.13,0.00032602,2]
[337157042,1725456782846,-854.77,0.00032602,2]
[337157043,1725456782858,-600.81,0.00032602,2]
[337157044,1725456782867,-749.45,0.00032602,2]
[337157045,1725456782878,-500.0,0.00032602,2]
[337157046,1725456782888,-590.0,0.00032602,2]
[337157047,1725456782899,-326.32116178,0.00032602,2]
[337157048,1725456782909,-510.61,0.00032602,2]
[337157049,1725456782918,-545.77828282,0.00032602,2]
[337157050,1725456782928,-500.0,0.00032602,2]
[337157051,1725456782938,-887.25,0.00032602,2]
[337157052,1725456782948,-500.0,0.00032602,2]
[337157053,1725456782958,-758.9,0.00032602,2]
[337157054,1725456782968,-500.0,0.00032602,2]
[337157055,1725456782977,-232.61052272,0.00032602,2]
[337157056,1725456782987,-500.0,0.00032602,2]
[337157057,1725456782997,-539.92393751,0.00032602,2]
[337157058,1725456783176,-500.0,0.00032602,2]
[337157059,1725456783186,-945.1,0.00032602,2]
[337157060,1725456783198,-1029.49,0.00032602,2]
[337157061,1725456783208,-770.95,0.00032602,2]
[337157062,1725456783218,-657.65,0.00032602,2]
[337157063,1725456783227,-566.62,0.00032602,2]
[337157064,1725456783237,-500.0,0.00032602,2]
[337157065,1725456783247,-863.47,0.00032602,2]
[337157066,1725456783262,-614.65,0.00032602,2]
[337157067,1725456783271,-500.0,0.00032602,2]
[337157068,1725456783280,-648.68,0.00032602,2]
[337157069,1725456783290,-500.0,0.00032602,2]
[337157070,1725456783299,-500.0,0.00032602,2]
[337157071,1725456783309,-701.69,0.00032602,2]
[337157072,1725456783318,-500.0,0.00032602,2]
[337157073,1725456783328,-578.02,0.00032602,2]
[337157074,1725456783337,-666.45,0.00032602,2]
[337157075,1725456783347,-342.52770004,0.00032602,2]
[337157076,1725456783357,-674.09,0.00032602,2]
[337157077,1725456783366,-623.51,0.00032602,2]
[337157078,1725456783376,-574.79,0.00032602,2]
[337157079,1725456783385,-604.6,0.00032602,2]
[337157080,1725456783395,-500.0,0.00032602,2]
[337157081,1725456783404,-847.93,0.00032602,2]
[337157082,1725456783414,-870.2,0.00032602,2]
[337157083,1725456783423,-500.0,0.00032602,2]
[337157084,1725456783432,-1991.87,0.00032602,2]
[337157085,1725456783442,-500.0,0.00032602,2]
[337157086,1725456783451,-899.14,0.00032602,2]
[337157087,1725456783461,-613.99,0.00032602,2]
[337157088,1725456783471,-762.62,0.00032602,2]
[337157089,1725456783481,-500.0,0.00032602,2]
[337157090,1725456783490,-732.83,0.00032602,2]
[337157091,1725456783504,-2003.71,0.00032602,2]
[337157092,1725456783514,-1205.94,0.00032602,2]
[337157093,1725456783524,-526.12,0.00032602,2]
[337157094,1725456783534,-500.0,0.00032602,2]
[337157095,1725456783544,-292.39604629,0.00032602,2]
[337157096,1725456783553,-912.72,0.00032602,2]
[337157097,1725456783563,-500.0,0.00032602,2]
[337157098,1725456783573,-954.3,0.00032602,2]
[337157099,1725456783582,-1493.78,0.00032602,2]
[337157100,1725456783592,-591.49,0.00032602,2]
[337157101,1725456783602,-711.92,0.00032602,2]
[337157102,1725456783612,-1275.87,0.00032602,2]
[337157103,1725456783623,-2668.56,0.00032602,2]
[337157104,1725456783636,-1035.91,0.00032602,2]
[337157105,1725456783646,-1248.71,0.00032602,2]
[337157106,1725456783655,-967.05,0.00032602,2]
[337157107,1725456783665,-2693.21,0.00032602,2]
[337157108,1725456783675,-1338.09,0.00032602,2]
[337157109,1725456783684,-1107.58,0.00032602,2]
[337157110,1725456783694,-4246.41,0.00032602,2]
[337157111,1725456783704,-1107.23,0.00032602,2]
[337157112,1725456783715,-1365.5,0.00032602,2]
[337157113,1725456783725,-1532.75,0.00032602,2]
[337157114,1725456783735,-1527.6,0.00032602,2]
[337157115,1725456783744,-1066.88,0.00032602,2]
[337157116,1725456783757,-1660.38,0.00032602,2]
[337157117,1725456783766,-754.88,0.00032602,2]
[337157118,1725456783776,-1670.02,0.00032602,2]
[337157119,1725456783785,-770.2,0.00032602,2]
[337157120,1725456783794,-1102.43,0.00032602,2]
[337157121,1725456783804,-1127.67,0.00032602,2]
[337157122,1725456783814,-1244.81,0.00032602,2]
[337157123,1725456783823,-1739.84,0.00032602,2]
[337157124,1725456783832,-500.0,0.00032602,2]
[337157125,1725456783842,-1099.51,0.00032602,2]
[337157126,1725456783852,-1841.76,0.00032602,2]
[337157127,1725456783862,-1011.14,0.00032602,2]
[337157128,1725456783872,-1093.15,0.00032602,2]
[337157129,1725456783882,-1756.8,0.00032602,2]
[337157130,1725456783891,-1799.48,0.00032602,2]
[337157131,1725456783901,-734.49,0.00032602,2]
[337157132,1725456783911,-153.0,0.00032651,2]
[337157133,1725456783920,-306.0,0.00032651,2]
[337157134,1725456783930,-153.8516559,0.00032651,2]
[337157135,1725456783940,-153.0,0.00032651,2]
[337157136,1725456783949,-153.0,0.00032651,2]
[337157137,1725456783959,-153.0,0.00032651,2]
[337157138,1725456783968,-153.0,0.00032651,2]
[337157139,1725456783978,-153.0,0.00032651,2]
[337157140,1725456783988,-153.0,0.00032651,2]
[337157141,1725456783997,-153.0,0.00032651,2]
[337157142,1725456784010,-153.0,0.00032651,2]
[337157143,1725456784020,-153.0,0.00032651,2]
[337157144,1725456784030,-153.0,0.00032651,2]
[337157145,1725456784040,-288.8717258,0.00032651,2]
[337157146,1725456784050,-208.0725932,0.00032651,2]
[337157147,1725456784059,-208.0725932,0.00032651,2]
[337157148,1725456784069,-208.0725932,0.00032651,2]
[337157149,1725456784078,-151.0,0.0003274,120]
[337157150,1725456784088,-1000.0,0.0003274,7]
[337157151,1725456784097,-749.82,0.00032866,2]
[337157152,1725456784107,-500.0,0.00032866,2]
[337157153,1725456784116,-268.81278221,0.00032876,2]
[337157154,1725456784127,-500.0,0.00032876,2]
[337157155,1725456784137,-1302.87,0.00032876,2]
[337157156,1725456784148,-1156.02,0.00032876,2]
[337157157,1725456784158,-760.8,0.00032876,2]
[337157158,1725456784167,-2082.53,0.00032876,2]
[337157159,1725456784177,-10473.4,0.00032876,2]
[337157160,1725456784187,-885.72,0.00032876,2]
[337157161,1725456784196,-871.3,0.00032876,2]
[337157162,1725456784206,-2887.27,0.00032876,2]
[337157163,1725456784216,-1285.92,0.00032876,2]
[337157164,1725456784226,-985.59,0.00032876,2]
[337157165,1725456784236,-4135.59,0.00032876,2]
[337157166,1725456784245,-543.17,0.00032876,2]
[337157167,1725456784260,-6518.68,0.00032876,2]
[337157168,1725456784269,-1587.43,0.00032876,2]
[337157169,1725456784279,-881.43,0.00032876,2]
[337157170,1725456784288,-5985.78,0.00032876,2]
[337157171,1725456784297,-506.34,0.00032876,2]
[337157172,1725456784308,-1326.71,0.00032876,2]
[337157173,1725456784319,-760.48,0.00032876,2]
[337157174,1725456784329,-500.0,0.00032876,2]
[337157175,1725456784339,-1143.83,0.00032876,2]
[337157176,1725456784349,-2460.73,0.00032876,2]
[337157177,1725456784359,-584.31,0.00032876,2]
[337157178,1725456784369,-807.59,0.00032876,2]
[337157179,1725456784379,-1986.82,0.00032876,2]
[337157180,1725456784389,-1131.76,0.00032876,2]
[337157181,1725456784399,-500.0,0.00032876,2]
[337157182,1725456784408,-919.57,0.00032876,2]
[337157183,1725456784418,-500.0,0.00032876,2]
[337157184,1725456784428,-519.17,0.00032876,2]
[337157185,1725456784438,-1474.74,0.00032876,2]
[337157186,1725456784447,-617.89,0.00032876,2]
[337157187,1725456784838,-540.48,0.00032876,2]
[337157188,1725456784848,-538.02,0.00032876,2]
[337157189,1725456784858,-1937.6,0.00032876,2]
[337157190,1725456784868,-588.58,0.00032876,2]
[337157191,1725456784877,-854.16,0.00032876,2]
[337157192,1725456784886,-486.65,0.00032876,2]
[337157193,1725456784896,-912.4,0.00032876,2]
[337157194,1725456784905,-500.0,0.00032876,2]
[337157195,1725456784914,-500.0,0.00032876,2]
[337157196,1725456784923,-529.57,0.00032876,2]
[337157197,1725456784933,-2076.7,0.00032876,2]
[337157198,1725456784943,-521.85,0.00032876,2]
[337157199,1725456784952,-1309.04,0.00032876,2]
[337157200,1725456784962,-1026.02,0.00032876,2]
[337157201,1725456784971,-1208.37,0.00032876,2]
[337157202,1725456784980,-1338.25,0.00032876,2]
[337157203,1725456784990,-500.0,0.00032876,2]
[337157204,1725456784999,-1167.36,0.00032876,2]
[337157205,1725456785010,-1426.7,0.00032876,2]
[337157206,1725456785020,-2750.23,0.00032876,2]
[337157207,1725456785029,-2710.57,0.00032876,2]
[337157208,1725456785039,-1541.42,0.00032876,2]
[337157209,1725456785049,-3258.81,0.00032876,2]
[337157210,1725456785059,-1264.51,0.00032876,2]
[337157211,1725456785068,-9158.35,0.00032876,2]
[337157212,1725456785078,-584.36,0.00032876,2]
[337157213,1725456785088,-542.73,0.00032876,2]
[337157214,1725456785097,-500.0,0.00032876,2]
[337157215,1725456785107,-1675.33,0.00032876,2]
[337157216,1725456785117,-1458.75,0.00032876,2]
[337157217,1725456785127,-552.11,0.00032876,2]
[337157218,1725456785137,-363.27,0.00032876,2]
[337157219,1725456785146,-500.0,0.00032876,2]
[337157220,1725456785156,-323.99,0.00032876,2]
[337157221,1725456785166,-525.77,0.00032876,2]
[337157222,1725456785176,-676.43,0.00032876,2]
[337157223,1725456785186,-632.09,0.00032876,2]
[337157224,1725456785196,-500.0,0.00032876,2]
[337157225,1725456785206,-500.0,0.00032876,2]
[337157226,1725456785215,-504.86,0.00032876,2]
[337157227,1725456785226,-604.04,0.00032876,2]
[337157228,1725456785236,-697.13,0.00032876,2]
[337157229,1725456785246,-854.77,0.00032876,2]
[337157230,1725456785259,-600.81,0.00032876,2]
[337157231,1725456785269,-749.45,0.00032876,2]
[337157232,1725456785278,-500.0,0.00032876,2]
[337157233,1725456785288,-590.0,0.00032876,2]
[337157234,1725456785298,-510.61,0.00032876,2]
[337157235,1725456785308,-500.0,0.00032876,2]
[337157236,1725456785318,-887.25,0.00032876,2]
[337157237,1725456785329,-500.0,0.00032876,2]
[337157238,1725456785338,-758.9,0.00032876,2]
[337157239,1725456785348,-500.0,0.00032876,2]
[337157240,1725456785358,-428.25451138,0.00032876,2]
[337157241,1725456785369,-500.0,0.00032876,2]
[337157242,1725456785379,-945.1,0.00032876,2]
[337157243,1725456785390,-1029.49,0.00032876,2]
[337157244,1725456785400,-770.95,0.00032876,2]
[337157245,1725456785409,-657.65,0.00032876,2]
[337157246,1725456785419,-566.62,0.00032876,2]
[337157247,1725456785430,-500.0,0.00032876,2]
[337157248,1725456785440,-863.47,0.00032876,2]
[337157249,1725456785450,-614.65,0.00032876,2]
[337157250,1725456785459,-500.0,0.00032876,2]
[337157251,1725456785470,-648.68,0.00032876,2]
[337157252,1725456785479,-500.0,0.00032876,2]
[337157253,1725456785489,-500.0,0.00032876,2]
[337157254,1725456785498,-701.69,0.00032876,2]
[337157255,1725456785509,-500.0,0.00032876,2]
[337157256,1725456785519,-578.02,0.00032876,2]
[337157257,1725456785530,-666.45,0.00032876,2]
[337157258,1725456785539,-623.51,0.00032876,2]
[337157259,1725456785549,-674.09,0.00032876,2]
[337157260,1725456785558,-574.79,0.00032876,2]
[337157261,1725456785568,-604.6,0.00032876,2]
[337157262,1725456785577,-551.23,0.00032876,2]
[337157263,1725456785587,-847.93,0.00032876,2]
[337157264,1725456785596,-870.2,0.00032876,2]
[337157265,1725456785606,-500.0,0.00032876,2]
[337157266,1725456785616,-1991.87,0.00032876,2]
[337157267,1725456785631,-500.0,0.00032876,2]
[337157268,1725456785640,-899.14,0.00032876,2]
[337157269,1725456785650,-613.99,0.00032876,2]
[337157270,1725456785661,-762.62,0.00032876,2]
[337157271,1725456785671,-500.0,0.00032876,2]
[337157272,1725456785681,-732.83,0.00032876,2]
[337157273,1725456785690,-2003.71,0.00032876,2]
[337157274,1725456785701,-1205.94,0.00032876,2]
[337157275,1725456785715,-526.12,0.00032876,2]
[337157276,1725456785725,-151.67633093,0.00032876,2]
[337157277,1725456785735,-912.72,0.00032876,2]
[337157278,1725456785745,-583.34,0.00032876,2]
[337157279,1725456785758,-954.3,0.00032876,2]
[337157280,1725456785775,-1493.78,0.00032876,2]
[337157281,1725456785784,-591.49,0.00032876,2]
[337157282,1725456785793,-711.92,0.00032876,2]
[337157283,1725456785802,-1275.87,0.00032876,2]
[337157284,1725456785812,-2668.56,0.00032876,2]
[337157285,1725456785822,-1035.91,0.00032876,2]
[337157286,1725456785832,-1248.71,0.00032876,2]
[337157287,1725456785841,-967.05,0.00032876,2]
[337157288,1725456785850,-2693.21,0.00032876,2]
[337157289,1725456785859,-1338.09,0.00032876,2]
[337157290,1725456785870,-1107.58,0.00032876,2]
[337157291,1725456785880,-4246.41,0.00032876,2]
[337157292,1725456785890,-1107.23,0.00032876,2]
[337157293,1725456785900,-1365.5,0.00032876,2]
[337157294,1725456785910,-1532.75,0.00032876,2]
[337157295,1725456785920,-1527.6,0.00032876,2]
[337157296,1725456785930,-1066.88,0.00032876,2]
[337157297,1725456785940,-1660.38,0.00032876,2]
[337157298,1725456785950,-754.88,0.00032876,2]
[337157299,1725456785960,-1670.02,0.00032876,2]
[337157300,1725456785970,-770.2,0.00032876,2]
[337157301,1725456785979,-1102.43,0.00032876,2]
[337157302,1725456785989,-1127.67,0.00032876,2]
[337157303,1725456785999,-1244.81,0.00032876,2]
[337157304,1725456786009,-1739.84,0.00032876,2]
[337157305,1725456786019,-646.91,0.00032876,2]
[337157306,1725456786030,-1099.51,0.00032876,2]
[337157307,1725456786040,-1841.76,0.00032876,2]
[337157308,1725456786049,-1011.14,0.00032876,2]
[337157309,1725456786059,-1093.15,0.00032876,2]
[337157310,1725456786069,-1756.8,0.00032876,2]
[337157311,1725456786079,-1799.48,0.00032876,2]
[337157312,1725456786089,-734.49,0.00032876,2]
[337157313,1725456786098,-416.31363375,0.00032876,2]
[337157314,1725456786107,-419.37099566,0.00032876,2]
[337157315,1725456786117,-381.8713372,0.00032876,2]
[337157316,1725456786127,-574.70626536,0.00032876,2]
[337157317,1725456786136,-491.05949166,0.00032876,2]
[337157318,1725456786146,-500.0,0.00032876,2]
[337157319,1725456786155,-500.0,0.00032876,2]
[337157320,1725456786165,-262.26721848,0.00032876,2]
[337157321,1725456786175,-500.0,0.00032876,2]
[337157322,1725456786185,-500.0,0.00032876,2]
[337157323,1725456786194,-500.0,0.00032876,2]
[337157324,1725456786204,-500.0,0.00032876,2]
[337157325,1725456786214,-500.0,0.00032876,2]
[337157326,1725456786223,-500.0,0.00032876,2]
[337157327,1725456786232,-500.0,0.00032876,2]
[337157328,1725456786242,-500.0,0.00032876,2]
[337157329,1725456786251,-500.0,0.00032876,2]
[337157330,1725456786272,-208.88221431,0.00032876,2]
[337157331,1725456786282,-22143.0732345,0.00032877,2]
[337157332,1725456786291,-3000.0,0.00032888,5]
[337157333,1725456786301,-28964.03,0.000329,14]
[337157334,1725456786311,-151.0,0.00032908,2]
[337157335,1725456786320,-220.0,0.00033,2]
[337157336,1725456786330,-220.0,0.00033,2]
[337157337,1725456786339,-800.0,0.00033042,7]
[337157338,1725456786348,-749.82,0.0003314,2]
[337157339,1725456786358,-205.76,0.0003314,2]
[337157340,1725456786368,-500.0,0.0003315,2]
[337157341,1725456786378,-1302.87,0.0003315,2]
[337157342,1725456786387,-1156.02,0.0003315,2]
[337157343,1725456786397,-760.8,0.0003315,2]
[337157344,1725456786407,-2082.53,0.0003315,2]
[337157345,1725456786416,-10473.4,0.0003315,2]
[337157346,1725456786425,-885.72,0.0003315,2]
[337157347,1725456786435,-871.3,0.0003315,2]
[337157348,1725456786445,-2887.27,0.0003315,2]
[337157349,1725456786454,-1285.92,0.0003315,2]
[337157350,1725456786464,-985.59,0.0003315,2]
[337157351,1725456786473,-4135.59,0.0003315,2]
[337157352,1725456786483,-543.17,0.0003315,2]
[337157353,1725456786493,-6518.68,0.0003315,2]
[337157354,1725456786504,-1587.43,0.0003315,2]
[337157355,1725456786513,-881.43,0.0003315,2]